bitfinex/quotes_BTCUSD_20260215
["timestamp","ask_amount","ask_price","bid_price","bid_amount"]
[1771149888333,0.07099602,70428.0,70423.0,0.07099941]
[1771149890111,0.07099517,70429.0,70424.0,0.07099807]
[1771149890331,0.0004,70432.0,70423.0,0.02367446]
[1771149890798,0.0004,70432.0,70429.0,0.02367446]
[1771149891160,0.07139046,70432.0,70429.0,0.02367446]
[1771149892566,0.07139046,70432.0,70427.0,0.09466937]
[1771149893106,0.0004,70432.0,70429.0,0.07099321]
[1771149893252,4e-05,70430.0,70428.0,0.07099432]
[1771149893662,4e-05,70430.0,70427.0,0.09466833]
[1771149894251,4e-05,70430.0,70429.0,0.07099348]
[1771149894456,0.0004,70436.0,70429.0,0.07099348]
[1771149894457,0.07098871,70434.0,70430.0,0.02367446]
[1771149894660,0.07098859,70434.0,70431.0,0.02367446]
[1771149895018,0.07098804,70435.0,70431.0,0.02367446]
[1771149895580,0.07098854,70434.0,70431.0,0.02367446]
[1771149895982,0.07098959,70433.0,70430.0,0.1]
[1771149896187,0.07098945,70433.0,70430.0,0.1]
[1771149896412,0.07098854,70434.0,70430.0,0.1]
[1771149898209,0.07098965,70433.0,70430.0,0.1]
[1771149898526,0.070991,70432.0,70430.0,0.1]
[1771149898755,0.07099115,70433.0,70422.0,0.00016]
[1771149898958,0.07099668,70426.0,70420.0,0.67652649]
[1771149899198,0.07099668,70426.0,70419.0,0.07100343]
[1771149899390,0.07099785,70425.0,70419.0,0.07100343]
[1771149900408,0.07099485,70428.0,70422.0,0.07100005]
[1771149901507,0.07099485,70428.0,70422.0,0.07120005]
[1771149901709,0.07099005,70433.0,70427.0,0.07099511]
[1771149901890,0.07098847,70434.0,70430.0,0.13261193]
[1771149902092,0.07098986,70433.0,70431.0,0.02367446]
[1771149902297,0.07098882,70434.0,70431.0,0.02367446]
[1771149902497,0.07098803,70436.0,70431.0,0.02367446]
[1771149902705,0.07098803,70435.0,70431.0,0.02367446]
[1771149902921,0.07098897,70434.0,70432.0,0.02367446]
[1771149903438,0.07098897,70434.0,70430.0,0.02367446]
[1771149903790,0.07098803,70435.0,70430.0,0.02367446]
[1771149903992,0.07098849,70434.0,70430.0,0.02367446]
[1771149904190,0.07098803,70435.0,70430.0,0.02367446]
[1771149904415,0.07105629,70434.0,70430.0,0.02367446]
[1771149905662,0.07098957,70433.0,70430.0,0.02367446]
[1771149905864,0.07105629,70434.0,70430.0,0.02367446]
[1771149906300,0.07105671,70434.0,70430.0,0.02367446]
[1771149907333,0.07098952,70433.0,70430.0,0.02367446]
[1771149907547,0.07099086,70432.0,70426.0,0.07099635]
[1771149907717,0.02304151,70432.0,70421.0,0.34008]
[1771149907949,0.07099656,70426.0,70420.0,0.6765268]
[1771149908163,0.07099271,70430.0,70423.0,0.07099853]
[1771149908361,0.07099271,70430.0,70424.0,0.0709981]
[1771149908692,0.07099271,70430.0,70423.0,0.07119853]
[1771149908693,0.02304151,70432.0,70423.0,0.0002]
[1771149908893,0.02304151,70427.0,70423.0,0.0002]
[1771149909092,0.09403731,70427.0,70423.0,0.0002]
[1771149909320,0.07099334,70430.0,70423.0,0.07119923]
[1771149909521,0.07099386,70429.0,70423.0,0.07119923]
[1771149909703,0.07099386,70429.0,70423.0,0.0002]
[1771149910289,0.0709948,70428.0,70423.0,0.0002]
[1771149911526,0.07100334,70420.0,70417.0,0.05574189]
[1771149911740,0.07100368,70419.0,70417.0,0.05574189]
[1771149912164,0.07100368,70419.0,70414.0,0.04701961]
[1771149912354,0.07101364,70409.0,70408.0,0.0002]
[1771149912554,0.07101465,70408.0,70407.0,0.0001468]
[1771149913109,0.07101157,70412.0,70407.0,0.0001468]
[1771149913414,0.07101233,70411.0,70407.0,0.0005788]
[1771149913638,0.07101367,70409.0,70407.0,0.0005788]
[1771149914357,0.07101433,70410.0,70407.0,0.0005788]
[1771149914658,0.07101076,70412.0,70407.0,0.0005788]
[1771149915734,0.07100828,70415.0,70408.0,0.07101305]
[1771149915885,0.02483359,70418.0,70407.0,0.07159437]
[1771149915886,0.07100861,70414.0,70407.0,0.071594]
[1771149916227,0.07101038,70413.0,70407.0,0.071594]
[1771149916384,0.28400914,70421.0,70407.0,0.071594]
[1771149916385,0.07100818,70416.0,70408.0,0.07101405]
[1771149916588,0.07100767,70415.0,70408.0,0.07101405]
[1771149916788,0.0710093,70414.0,70408.0,0.07101405]
[1771149917196,0.07100255,70420.0,70409.0,0.0002]
[1771149917355,0.07100846,70415.0,70409.0,0.0002]
[1771149917562,0.07100996,70413.0,70409.0,0.0002]
[1771149917761,0.07100898,70414.0,70409.0,0.0002]
[1771149917962,0.07100806,70415.0,70409.0,0.07121311]
[1771149918992,0.07100908,70414.0,70409.0,0.0002]
[1771149919961,0.0710097,70413.0,70409.0,0.0002]
[1771149920211,0.07101264,70410.0,70409.0,0.0002]
[1771149920585,0.07101459,70409.0,70407.0,0.0005788]
[1771149920791,0.07101465,70408.0,70407.0,0.0005788]
[1771149921807,0.07101465,70408.0,70397.0,0.02310216]
[1771149921808,0.07101988,70403.0,70396.0,0.0002012]
[1771149922018,0.0004324,70403.0,70399.0,0.07102337]
[1771149922275,0.0004324,70403.0,70398.0,0.16194469]
[1771149922482,0.0004324,70403.0,70390.0,0.02310216]
[1771149922629,0.07102407,70399.0,70393.0,0.07102893]
[1771149922830,0.07102407,70399.0,70394.0,0.07102831]
[1771149923159,0.0710239,70399.0,70394.0,0.07102831]
[1771149923946,0.0710239,70399.0,70393.0,0.07102893]
[1771149924146,0.07102499,70398.0,70390.0,0.28413117]
[1771149924358,0.02483359,70396.0,70385.0,0.0002012]
[1771149924560,0.0710335,70390.0,70385.0,0.0002012]
[1771149924735,0.07103395,70389.0,70386.0,0.0002]
[1771149924961,0.07103395,70389.0,70377.0,0.42305407]
[1771149924962,0.0710429,70380.0,70379.0,0.0002]
[1771149925155,0.13709813,70381.0,70379.0,0.0002]
[1771149925411,0.34008,70393.0,70350.0,0.02310216]
[1771149925412,0.13709813,70374.0,70350.0,0.02310216]
[1771149925585,0.15954223,70379.0,70340.0,0.0002012]
[1771149925586,0.02483359,70371.0,70354.0,0.0002583]
[1771149925773,0.68116383,70372.0,70358.0,0.07106475]
[1771149925774,0.07105791,70366.0,70358.0,0.07106475]
[1771149925941,0.07105188,70372.0,70354.0,0.1391321]
[1771149926142,0.13709813,70370.0,70354.0,0.02336046]
[1771149926395,0.02483359,70369.0,70354.0,0.02336046]
[1771149926808,0.00043213,70372.0,70371.0,0.07105199]
[1771149926999,0.09096,70378.0,70371.0,0.07105136]
[1771149927215,0.16200495,70378.0,70371.0,4.324e-05]
[1771149927426,0.34771363,70379.0,70371.0,4.324e-05]
[1771149927427,0.00763363,70379.0,70371.0,4.324e-05]
[1771149927773,0.00763363,70379.0,70376.0,0.07104625]
[1771149927980,0.00763363,70379.0,70376.0,0.03884625]
[1771149928641,0.00763363,70379.0,70377.0,0.0710457]
[1771149928778,0.00763363,70379.0,70375.0,0.07104717]
[1771149929185,0.03312832,70378.0,70372.0,0.07105098]
[1771149929475,0.03312832,70378.0,70376.0,0.07104646]
[1771149929680,0.07104095,70382.0,70372.0,0.0710502]
[1771149929844,0.07104095,70382.0,70375.0,0.07104783]
[1771149930205,0.07104095,70382.0,70374.0,0.07104823]
[1771149930418,0.07104095,70382.0,70373.0,0.07104815]
[1771149930599,0.09096,70387.0,70371.0,4.324e-05]
[1771149930600,0.07103543,70388.0,70372.0,0.02310216]
[1771149930824,0.34012,70387.0,70376.0,0.1388738]
[1771149931028,0.34012,70387.0,70383.0,0.07103972]
[1771149931168,0.07103864,70386.0,70377.0,0.07104525]
[1771149931370,0.07103864,70386.0,70371.0,4.324e-05]
[1771149931371,0.07103939,70384.0,70371.0,0.07109422]
[1771149931578,0.09587205,70385.0,70378.0,0.07104448]
[1771149932298,0.02483359,70385.0,70371.0,4.324e-05]
[1771149932469,0.34008,70389.0,70383.0,0.07103898]
[1771149932671,0.34008,70389.0,70382.0,0.07104062]
[1771149932919,0.34008,70389.0,70378.0,0.02310216]
[1771149932920,0.07103682,70387.0,70380.0,0.07104228]
[1771149933234,0.07103754,70386.0,70379.0,0.07104308]
[1771149933432,0.07103802,70385.0,70379.0,0.07104308]
[1771149933579,0.07103754,70386.0,70380.0,0.0710429]
[1771149933789,0.07103754,70386.0,70379.0,0.07104308]
[1771149934387,0.07103483,70388.0,70375.0,0.07104761]
[1771149934590,0.07104233,70381.0,70375.0,0.07104741]
[1771149934790,0.07104148,70383.0,70376.0,0.07104626]
[1771149935000,0.02483359,70388.0,70376.0,0.07104617]
[1771149935339,0.09586943,70388.0,70378.0,0.07104432]
[1771149935575,0.07103894,70384.0,70378.0,0.07104432]
[1771149935695,0.07103902,70384.0,70378.0,0.07104432]
[1771149935892,0.07103991,70383.0,70377.0,0.07104591]
[1771149936095,0.07103991,70383.0,70378.0,0.07104491]
[1771149936401,0.07103902,70384.0,70379.0,0.07104391]
[1771149936547,0.07103805,70385.0,70379.0,0.07104391]
[1771149936950,0.02483359,70386.0,70373.0,0.0002]
[1771149937150,0.07104091,70382.0,70376.0,0.07104619]
[1771149938202,0.07108342,70380.0,70373.0,0.00016]
[1771149938352,0.07104439,70379.0,70373.0,0.07120946]
[1771149938551,0.07108342,70380.0,70374.0,0.07104882]
[1771149938961,0.07104415,70379.0,70374.0,0.07104882]
[1771149939157,0.07104415,70379.0,70373.0,0.07120946]
[1771149939555,0.07108342,70380.0,70373.0,0.07120946]
[1771149939761,0.13709813,70378.0,70366.0,0.0002]
[1771149939975,0.07105137,70372.0,70366.0,0.07125629]
[1771149940376,0.4111673,70376.0,70370.0,0.07105243]
[1771149940569,0.4111673,70376.0,70366.0,0.0002]
[1771149940570,0.07117515,70378.0,70366.0,0.0002]
[1771149940790,0.07117515,70378.0,70371.0,0.07105121]
[1771149940791,0.07104638,70377.0,70371.0,0.07105121]
[1771149941337,0.41129515,70378.0,70372.0,0.07105039]
[1771149941515,0.34024956,70378.0,70368.0,0.07105502]
[1771149941855,0.34024956,70378.0,70373.0,0.07104809]
[1771149942068,0.07104601,70377.0,70372.0,0.07105046]
[1771149942243,0.0710497,70374.0,70368.0,0.07105443]
[1771149942824,0.07105041,70373.0,70367.0,0.07105584]
[1771149943144,0.36508315,70378.0,70366.0,0.0002]
[1771149943145,0.34024956,70378.0,70366.0,0.0002]
[1771149943366,0.07105378,70370.0,70366.0,0.0002]
[1771149943504,0.07105474,70369.0,70366.0,0.0002]
[1771149943716,0.07105474,70369.0,70363.0,0.07105943]
[1771149943717,0.14040349,70376.0,70360.0,4e-05]
[1771149943915,0.34012,70375.0,70361.0,0.07106137]
[1771149944139,0.07105401,70369.0,70360.0,0.07110283]
[1771149944306,0.07105999,70364.0,70360.0,4e-05]
[1771149944520,0.07105893,70365.0,70360.0,4e-05]
[1771149944746,0.07105893,70365.0,70354.0,0.02321226]
[1771149944747,0.14040349,70368.0,70354.0,0.0002583]
[1771149944952,0.09379907,70362.0,70356.0,0.07106684]
[1771149945156,0.68116383,70370.0,70355.0,0.0710676]
[1771149945401,0.09380013,70360.0,70355.0,0.0710676]
[1771149945602,0.02273701,70368.0,70354.0,1e-08]
[1771149945800,0.43112,70375.0,70330.0,0.03132247]
[1771149945801,0.14040349,70354.0,70330.0,0.03132247]
[1771149946048,0.34012,70353.0,70331.0,0.02307396]
[1771149946258,0.02273701,70348.0,70331.0,0.02307396]
[1771149946462,0.02273701,70348.0,70343.0,0.07107955]
[1771149946592,0.34012,70351.0,70348.0,0.07107451]
[1771149946796,0.34012,70351.0,70346.0,0.07107699]
[1771149947019,0.00012948,70351.0,70346.0,0.071077]
[1771149947183,0.00012948,70351.0,70340.0,0.14662587]
[1771149947184,0.0710695,70354.0,70347.0,0.07107536]
[1771149947386,0.36085701,70359.0,70350.0,0.0710727]
[1771149947587,0.36085701,70359.0,70348.0,0.07107477]
[1771149947588,0.07106961,70354.0,70348.0,0.07107477]
[1771149947831,0.07106961,70354.0,70348.0,0.07107484]
[1771149948056,0.07106938,70354.0,70347.0,0.00043213]
[1771149948341,0.07107061,70353.0,70347.0,0.00043213]
[1771149948885,0.07107061,70353.0,70345.0,0.07107825]
[1771149949086,0.07107121,70352.0,70346.0,0.07107659]
[1771149949291,0.07150376,70353.0,70346.0,0.07107675]
[1771149949514,0.07107138,70352.0,70346.0,0.07107675]
[1771149950131,0.07107694,70347.0,70340.0,0.07108276]
[1771149950330,0.07107417,70350.0,70344.0,0.07107908]
[1771149950934,0.07107525,70348.0,70342.0,0.07108097]
[1771149951132,0.07108073,70343.0,70330.0,0.03110917]
[1771149951328,0.07107825,70345.0,70330.0,0.03110917]
[1771149951577,0.07107825,70345.0,70339.0,0.07108369]
[1771149951785,0.07108395,70340.0,70334.0,0.0940432]
[1771149951986,0.14040349,70345.0,70330.0,0.03110917]
[1771149952297,0.07109139,70332.0,70330.0,0.03093213]
[1771149952500,0.07109139,70332.0,70324.0,0.07109894]
[1771149952501,0.0710924,70331.0,70324.0,0.07109894]
[1771149952711,0.14040349,70331.0,70312.0,0.02295396]
[1771149952910,0.02273701,70326.0,70311.0,0.28444646]
[1771149953112,0.36285701,70332.0,70311.0,0.14662587]
[1771149953316,0.02273701,70339.0,70330.0,0.07079581]
[1771149953493,0.34012,70333.0,70322.0,0.28440197]
[1771149953702,0.00014852,70332.0,70327.0,0.07109644]
[1771149953917,0.00014852,70332.0,70330.0,0.07109313]
[1771149954121,0.00014852,70332.0,70330.0,0.0710934]
[1771149954432,0.00043288,70333.0,70332.0,0.07109139]
[1771149954770,0.00043288,70333.0,70332.0,0.03434876]
[1771149954970,0.07152336,70333.0,70326.0,0.02295396]
[1771149955169,0.00043288,70333.0,70312.0,0.0002]
[1771149955382,0.07109632,70328.0,70321.0,0.07110174]
[1771149955583,0.00043288,70333.0,70323.0,0.07110034]
[1771149955584,0.02273701,70331.0,70323.0,0.07110034]
[1771149955783,0.02273701,70331.0,70325.0,0.07109776]
[1771149956044,0.09382947,70331.0,70325.0,0.07109776]
[1771149956325,0.07109417,70330.0,70324.0,0.07109932]
[1771149956525,0.09382997,70331.0,70325.0,0.07109825]
[1771149956683,0.09382997,70331.0,70324.0,0.07109932]
[1771149956684,0.07109385,70330.0,70324.0,0.07109932]
[1771149956880,0.02273701,70331.0,70326.0,0.0710968]
[1771149957106,0.00043288,70333.0,70329.0,0.07109397]
[1771149957281,0.00043288,70333.0,70328.0,0.0710947]
[1771149957882,0.00043288,70333.0,70329.0,0.07109421]
[1771149958081,0.02316989,70333.0,70329.0,0.07109421]
[1771149958286,0.00043288,70333.0,70330.0,0.0710932]
[1771149958505,0.00043288,70333.0,70331.0,0.07109223]
[1771149958943,0.00043288,70333.0,70332.0,0.07109139]
[1771149959460,0.20486749,70334.0,70324.0,0.02295396]
[1771149959695,0.20486749,70334.0,70330.0,0.07109319]
[1771149960083,0.20486749,70334.0,70331.0,0.07109229]
[1771149960241,4e-05,70340.0,70336.0,0.07108665]
[1771149960442,4e-05,70340.0,70333.0,0.07108964]
[1771149960443,0.0710851,70339.0,70333.0,0.07108964]
[1771149960668,0.41124354,70340.0,70336.0,0.0710868]
[1771149960669,0.34016,70340.0,70336.0,0.0710868]
[1771149960868,0.34016,70340.0,70336.0,0.07108586]
[1771149961081,0.36289701,70340.0,70334.0,0.07108866]
[1771149961417,0.0938267,70334.0,70327.0,0.07109552]
[1771149961549,0.0938267,70334.0,70328.0,0.07109504]
[1771149962104,0.02273701,70334.0,70328.0,0.07109504]
[1771149962283,0.09104,70344.0,70325.0,0.07109847]
[1771149962612,0.07108786,70336.0,70330.0,0.07109304]
[1771149962849,0.07108698,70337.0,70331.0,0.07109168]
[1771149963081,0.0710845,70339.0,70329.0,0.07109442]
[1771149963302,0.0710845,70339.0,70325.0,0.02295396]
[1771149963513,0.36289701,70340.0,70326.0,0.07109746]
[1771149963722,0.07108673,70337.0,70331.0,0.07109178]
[1771149963947,0.07108477,70339.0,70333.0,0.07108964]
[1771149964167,0.36293701,70340.0,70325.0,0.16957983]
[1771149964399,0.36293701,70340.0,70336.0,0.07108691]
[1771149964400,4e-05,70340.0,70336.0,0.07108691]
[1771149964656,4e-05,70340.0,70337.0,0.07108575]
[1771149964901,4e-05,70340.0,70335.0,0.07108793]
[1771149965170,0.07112365,70340.0,70334.0,0.07108868]
[1771149965412,0.07108438,70339.0,70334.0,0.07108868]
[1771149965660,0.0710879,70336.0,70330.0,0.07109272]
[1771149965902,0.07108545,70338.0,70332.0,0.07108975]
[1771149966638,0.07108545,70338.0,70333.0,0.07109]
[1771149966893,0.02273701,70337.0,70332.0,0.07108975]
[1771149967343,0.02273701,70334.0,70323.0,0.28439912]
[1771149967566,0.09382923,70332.0,70326.0,0.07109709]
[1771149968012,0.0710925,70331.0,70326.0,0.07109709]
[1771149968234,4e-05,70330.0,70326.0,0.07109709]
[1771149968478,4e-05,70330.0,70329.0,0.07109442]
[1771149968943,4e-05,70340.0,70334.0,0.07108906]
[1771149969160,4e-05,70340.0,70327.0,0.28438349]
[1771149969161,0.07108595,70338.0,70333.0,0.07108986]
[1771149969387,4e-05,70340.0,70326.0,0.14662587]
[1771149969606,4e-05,70340.0,70320.0,0.6829835]
[1771149969607,4e-05,70340.0,70336.0,0.07108677]
[1771149969825,4e-05,70340.0,70337.0,0.07108621]
[1771149970723,4e-05,70340.0,70338.0,0.07108493]
[1771149970955,4e-05,70340.0,70339.0,0.07108432]
[1771149971416,0.07111368,70350.0,70334.0,0.02295396]
[1771149971629,0.34016,70349.0,70336.0,0.02295396]
[1771149971830,0.0710749,70349.0,70343.0,0.07107953]
[1771149972128,0.32526142,70350.0,70340.0,4e-05]
[1771149972366,0.07107592,70348.0,70340.0,4e-05]
[1771149972573,0.07107625,70347.0,70342.0,0.07108083]
[1771149972792,0.07107661,70347.0,70342.0,0.07108083]
[1771149973054,0.07107481,70349.0,70340.0,4e-05]
[1771149973265,0.001,70349.0,70341.0,0.28432558]
[1771149973476,0.001,70349.0,70347.0,0.07107579]
[1771149973687,0.0004,70352.0,70346.0,0.07107623]
[1771149973896,0.0004,70352.0,70341.0,0.30892583]
[1771149974122,0.0004,70352.0,70350.0,0.07107241]
[1771149974875,0.07107257,70351.0,70344.0,0.09567801]
[1771149975070,0.0004,70352.0,70344.0,0.02460068]
[1771149975279,0.0004,70352.0,70350.0,0.07107258]
[1771149975520,0.0004,70352.0,70350.0,0.02460068]
[1771149975724,0.0004,70352.0,70350.0,0.02445214]
[1771149976460,0.0004,70352.0,70348.0,0.07107516]
[1771149976461,0.0004,70352.0,70348.0,0.02460068]
[1771149976658,0.07147276,70352.0,70347.0,0.07107589]
[1771149976848,0.0004,70352.0,70349.0,0.07107365]
[1771149977051,0.0004,70352.0,70350.0,0.07107259]
[1771149977251,0.0004,70352.0,70349.0,0.07120368]
[1771149977455,0.0004,70352.0,70349.0,0.00012948]
[1771149977656,0.07147128,70352.0,70349.0,0.00012948]
[1771149978076,0.07147128,70352.0,70330.0,4e-05]
[1771149978077,0.024975,70348.0,70330.0,4e-05]
[1771149978294,0.024975,70333.0,70330.0,4e-05]
[1771149978429,0.6829435,70340.0,70330.0,4e-05]
[1771149978430,0.024975,70339.0,70330.0,0.07113278]
[1771149978634,0.024975,70336.0,70331.0,0.07109175]
[1771149978845,0.024975,70336.0,70330.0,0.28441341]
[1771149979039,0.024975,70336.0,70331.0,0.07109141]
[1771149979467,0.28434721,70337.0,70330.0,4e-05]
[1771149979666,0.07109014,70334.0,70330.0,4e-05]
[1771149980966,0.28434721,70337.0,70330.0,4e-05]
[1771149980967,0.07109198,70332.0,70330.0,4e-05]
[1771149981113,0.07109558,70328.0,70323.0,0.07110044]
[1771149981312,0.09606437,70335.0,70324.0,0.07109908]
[1771149981547,0.0710945,70329.0,70323.0,0.0710997]
[1771149982345,0.07108937,70335.0,70322.0,0.07110148]
[1771149982582,0.07109603,70328.0,70322.0,0.07110148]
[1771149982723,0.07109555,70328.0,70323.0,0.07109991]
[1771149983131,0.07109631,70329.0,70323.0,0.07109991]
[1771149983716,0.28436571,70332.0,70320.0,0.28445352]
[1771149983717,4e-05,70340.0,70320.0,4e-05]
[1771149983911,0.34016,70344.0,70320.0,4e-05]
[1771149984166,0.28431433,70345.0,70330.0,4e-05]
[1771149984354,0.07108591,70338.0,70332.0,0.07109101]
[1771149984518,0.2843301,70341.0,70330.0,4e-05]
[1771149984519,0.07108979,70334.0,70330.0,4e-05]
[1771149984715,0.09606479,70334.0,70330.0,4e-05]
[1771149984937,0.07109178,70332.0,70325.0,0.07109652]
[1771149985317,4e-05,70340.0,70292.0,0.42580815]
[1771149985318,0.0711106,70313.0,70310.0,0.00165768]
[1771149985504,0.07111363,70310.0,70306.0,0.0003074]
[1771149985707,0.024975,70313.0,70306.0,0.0003074]
[1771149985853,0.09608834,70311.0,70306.0,0.0003074]
[1771149986055,0.09608954,70311.0,70306.0,0.0003074]
[1771149986282,0.09608804,70311.0,70306.0,0.0003074]
[1771149986454,0.0251047,70311.0,70307.0,0.07111606]
[1771149986643,0.0001297,70311.0,70309.0,0.07111431]
[1771149986845,0.0001297,70311.0,70304.0,0.01600809]
[1771149987105,0.0001297,70311.0,70310.0,0.07111363]
[1771149987307,0.09608112,70318.0,70305.0,0.02460068]
[1771149987605,0.07110233,70322.0,70315.0,0.07110772]
[1771149987959,0.3402,70323.0,70320.0,0.07110336]
[1771149988260,0.024975,70326.0,70305.0,0.00043288]
[1771149988399,0.07110294,70321.0,70315.0,0.07110835]
[1771149988596,0.024975,70326.0,70311.0,0.02460068]
[1771149988796,0.07109948,70324.0,70310.0,0.07111317]
[1771149988994,0.0711083,70316.0,70309.0,0.07111456]
[1771149989370,0.0711083,70316.0,70307.0,0.01600809]
[1771149989371,0.07111311,70311.0,70307.0,0.01600809]
[1771149989662,0.07111584,70308.0,70305.0,0.00043288]
[1771149989855,0.15598746,70319.0,70300.0,0.07112319]
[1771149990170,0.024975,70308.0,70303.0,0.07112033]
[1771149990332,0.09608257,70317.0,70302.0,0.07111976]
[1771149990532,0.00043315,70319.0,70302.0,0.07111976]
[1771149990533,0.07111099,70313.0,70307.0,0.07111597]
[1771149990734,0.00043315,70319.0,70304.0,0.02460068]
[1771149990916,0.024975,70318.0,70304.0,0.01600809]
[1771149991110,0.07111004,70314.0,70308.0,0.07111523]
[1771149991428,0.07111004,70314.0,70307.0,0.07111663]
[1771149991429,0.07111006,70314.0,70307.0,0.07111614]
[1771149991672,0.07111103,70313.0,70307.0,0.07111633]
[1771149991844,0.07111708,70307.0,70301.0,0.0711223]
[1771149992051,0.00043315,70319.0,70306.0,0.07111761]
[1771149992255,0.07111076,70313.0,70307.0,0.07111598]
[1771149992455,0.07111228,70312.0,70306.0,0.07111726]
[1771149992783,0.07111381,70310.0,70306.0,0.01600809]
[1771149993187,0.07111526,70309.0,70306.0,0.01600809]
[1771149993385,0.07110731,70317.0,70308.0,0.28445924]
[1771149993532,0.07110742,70318.0,70310.0,0.07111272]
[1771149993730,0.07110998,70314.0,70309.0,0.07111409]
[1771149993937,0.07110918,70315.0,70310.0,0.01600809]
[1771149994164,0.09608418,70315.0,70310.0,0.08712138]
[1771149994334,0.024975,70315.0,70310.0,0.00410832]
[1771149994540,0.024975,70315.0,70299.0,0.43526058]
[1771149994541,0.024975,70310.0,70299.0,0.0002]
[1771149994740,0.07111837,70306.0,70299.0,0.07132318]
[1771149994958,0.00043315,70319.0,70299.0,0.07132318]
[1771149994959,0.28443028,70317.0,70300.0,0.07112336]
[1771149995158,0.07111828,70306.0,70300.0,0.07112336]
[1771149995554,0.3402,70317.0,70300.0,0.1505622]
[1771149995722,0.3402,70317.0,70299.0,0.0002]
[1771149995723,0.07110917,70315.0,70309.0,0.07111415]
[1771149995952,0.07110917,70315.0,70310.0,0.07111361]
[1771149996304,0.00043315,70319.0,70301.0,0.02460068]
[1771149996506,0.07110821,70316.0,70310.0,0.07111317]
[1771149996955,0.07110821,70317.0,70311.0,0.07111236]
[1771149997332,0.07110793,70316.0,70311.0,0.07111236]
[1771149997634,0.07110793,70316.0,70310.0,0.07111354]
[1771149997635,0.0711084,70316.0,70310.0,0.07111336]
[1771149998018,0.07110918,70315.0,70309.0,0.07111382]
[1771149998402,0.07110918,70315.0,70310.0,0.07103339]
[1771149998691,0.07111362,70311.0,70299.0,0.02480068]
[1771149998845,0.07111445,70310.0,70304.0,0.07111929]
[1771149999042,0.28444261,70313.0,70299.0,0.02480068]
[1771149999043,0.07111621,70308.0,70300.0,0.07112375]
[1771149999274,0.07111964,70305.0,70299.0,0.0002]
[1771149999681,0.07112364,70301.0,70299.0,0.0002]
[1771149999904,0.07062364,70301.0,70299.0,0.0002]
[1771150000084,0.024975,70304.0,70289.0,0.02490808]
[1771150000296,0.024975,70304.0,70280.0,4e-05]
[1771150000297,0.07113144,70293.0,70287.0,0.07113635]
[1771150000515,0.6829435,70300.0,70280.0,0.02464068]
[1771150000516,0.28453144,70294.0,70280.0,4e-05]
[1771150000653,0.07113877,70286.0,70280.0,4e-05]
[1771150000849,0.30949971,70293.0,70277.0,0.07114629]
[1771150001211,0.09108,70295.0,70260.0,1.45012588]
[1771150001361,0.024975,70292.0,70275.0,0.17516288]
[1771150001565,0.024975,70292.0,70279.0,0.07114451]
[1771150001783,0.07114262,70282.0,70264.0,0.02460068]
[1771150002140,0.3402,70292.0,70275.0,0.1505622]
[1771150002141,0.06,70285.0,70275.0,0.1505622]
[1771150002331,0.06,70285.0,70278.0,0.28458154]
[1771150002633,0.06,70285.0,70279.0,0.071145]
[1771150002850,0.3402,70292.0,70285.0,0.07113893]
[1771150003159,0.07113355,70291.0,70284.0,0.0002]
[1771150003379,0.07113438,70290.0,70284.0,0.07133943]
[1771150003604,0.07113571,70289.0,70284.0,0.0002]
[1771150003830,0.00043288,70295.0,70289.0,0.07113455]
[1771150004041,0.0711306,70294.0,70287.0,0.07113625]
[1771150004299,0.00043288,70295.0,70284.0,0.0002]
[1771150004694,0.0004,70342.0,70301.0,0.07112233]
[1771150004695,0.07111651,70308.0,70301.0,0.07112233]
[1771150004902,0.07110656,70317.0,70310.0,0.0711129]
[1771150005114,0.0004,70352.0,70313.0,0.07111033]
[1771150005115,0.28440093,70324.0,70313.0,0.07111033]
[1771150005322,0.07111282,70311.0,70304.0,0.07111909]
[1771150005554,0.07111522,70309.0,70302.0,0.07112079]
[1771150005722,0.3402,70322.0,70301.0,0.0001297]
[1771150005723,0.28447065,70307.0,70301.0,0.0001297]
[1771150005924,0.07112723,70297.0,70291.0,0.07113216]
[1771150006129,0.00012977,70297.0,70284.0,0.14862398]
[1771150006298,0.0712569,70297.0,70289.0,0.0711339]
[1771150006493,0.00012977,70297.0,70285.0,0.42345792]
[1771150006883,0.07112028,70304.0,70298.0,0.0711256]
[1771150007059,0.0711233,70302.0,70296.0,0.07112757]
[1771150007272,0.07112076,70303.0,70297.0,0.07112629]
[1771150007491,0.29524,70307.0,70292.0,0.02438789]
[1771150007701,0.14245173,70309.0,70286.0,0.28455104]
[1771150007902,0.07112683,70297.0,70291.0,0.07113227]
[1771150008085,0.07112683,70297.0,70286.0,0.28498392]
[1771150008086,0.14245173,70309.0,70286.0,0.00043288]
[1771150008241,0.6829435,70296.0,70282.0,8.64e-05]
[1771150008439,0.02262717,70288.0,70276.0,0.07114759]
[1771150008673,0.0711384,70286.0,70280.0,0.07114375]
[1771150008879,0.02262717,70297.0,70279.0,0.14842398]
[1771150009114,0.07112993,70294.0,70288.0,0.07113564]
[1771150009326,0.07113335,70291.0,70284.0,0.07113925]
[1771150009497,0.07256079,70296.0,70280.0,0.02438789]
[1771150009707,0.07113036,70294.0,70282.0,0.14842398]
[1771150010030,0.07113256,70292.0,70286.0,0.07113708]
[1771150010157,0.00143288,70296.0,70291.0,0.07113282]
[1771150010364,0.00143288,70296.0,70292.0,0.07113124]
[1771150010558,0.28448214,70304.0,70292.0,0.07113124]
[1771150010559,0.07112318,70301.0,70294.0,0.07112956]
[1771150010824,0.71529166,70320.0,70297.0,0.0711261]
[1771150010825,0.07111943,70305.0,70297.0,0.0711261]
[1771150011031,0.07112023,70304.0,70298.0,0.07112489]
[1771150011387,0.07111997,70304.0,70298.0,0.07112489]
[1771150011571,0.07111997,70304.0,70297.0,0.07112517]
[1771150011572,0.3070886,70309.0,70292.0,0.14862398]
[1771150011716,0.07112346,70301.0,70292.0,0.14862398]
[1771150011921,0.02262717,70309.0,70292.0,0.0002]
[1771150012128,0.02262717,70309.0,70297.0,0.07112666]
[1771150012129,0.07112146,70303.0,70297.0,0.07112666]
[1771150012366,0.07112202,70302.0,70296.0,0.07112778]
[1771150012534,0.07112202,70302.0,70297.0,0.07112676]
[1771150012937,0.07112118,70303.0,70297.0,0.07112676]
[1771150013164,4e-05,70300.0,70297.0,0.07108676]
[1771150013385,4e-05,70300.0,70294.0,0.14842398]
[1771150013386,4e-05,70300.0,70299.0,0.07112476]
[1771150013585,0.07111689,70307.0,70301.0,0.07112202]
[1771150014027,0.07115392,70310.0,70304.0,0.07111921]
[1771150014229,0.07111465,70309.0,70303.0,0.07112009]
[1771150014349,0.07111735,70307.0,70301.0,0.07112177]
[1771150014955,0.07111788,70306.0,70300.0,0.07112214]
[1771150015149,0.07111735,70307.0,70301.0,0.07112271]
[1771150015528,0.07115431,70310.0,70304.0,0.07111927]
[1771150015652,0.07111465,70309.0,70304.0,0.07111927]
[1771150015874,0.0711112,70313.0,70307.0,0.07111625]
[1771150016099,0.0711097,70314.0,70308.0,0.07111475]